Cogmind - Beta 17.1 @@@ ROGUE MODE // 2026.09.21 @ 20:19:39 Player: Caluan Result: Destroyed by G-34 Mercenary with Small Laser Performance ------------- Evolutions (0) 0 Regions Visited (2) 400 Robots Destroyed (16) 80 Value Destroyed (356) 356 Prototype IDs (0) 0 Alien Tech Used (0) 0 Bonus (0) 0 TOTAL SCORE: 836 Bonus ------- None Cogmind --------- Core Integrity 0/250 Matter 290/300 Energy 250/250 System Corruption 5% Temperature Cool (6) Movement Walking (120) Location -10/Mines Parts ------- > --- POWER (1) -------- Ion Engine > --- PROPULSION (2) --- Aluminum Leg Aluminum Leg > --- UTILITY (2) ------ Medium Storage Unit > --- WEAPON (2) ------- (None) > --- INVENTORY (10) --- Ion Engine Aluminum Leg Aluminum Leg Aluminum Leg Aluminum Leg Hacking Suite Datajack Peak State ------------ > --- POWER ------------ Ion Engine > --- PROPULSION ------- Light Treads Light Treads > --- UTILITY ---------- Small Storage Unit Medium Storage Unit > --- WEAPON ----------- EM Pulse Gun EM Pulse Gun > --- INVENTORY -------- Ion Engine Aluminum Leg Aluminum Leg Hacking Suite Medium Laser Datajack [Rating: 7] Favorites ----------- Power Ion Engine Engine Ion Engine Propulsion Light Treads Treads Light Treads Leg Aluminum Leg Utility Medium Storage Unit Device ECM Suite Storage Medium Storage Unit Weapon EM Pulse Gun Energy Gun EM Pulse Gun Slashing Weapon Mining Claw Build | -11 -10 -10 ------- Run | Yrd Mat Min Slots Evolved . | . . . Power . | . . . Propulsion . | . . . Utility . | . . . Weapon . | . . . Parts Attached 14 | 6 6 2 Power 1 | 1 . . Engine 1 | 1 . . Core . | . . . Reactor . | . . . Propulsion 6 | 2 2 2 Treads 2 | 2 . . Leg 4 | . 2 2 Wheel . | . . . Hover . | . . . Flight . | . . . Utility 3 | 1 2 . Device 1 | . 1 . Storage 2 | 1 1 . Processor . | . . . Hackware . | . . . Protection . | . . . Artifact . | . . . Weapon 4 | 2 2 . Energy Gun 3 | 2 1 . Energy Cannon . | . . . Ballistic Gun . | . . . Ballistic Cannon . | . . . Launcher . | . . . Special Weapon . | . . . Impact Weapon . | . . . Slashing Weapon 1 | . 1 . Piercing Weapon . | . . . Special Melee Weapon . | . . . Unidentified Prototypes . | . . . Parts Lost 5 | . 1 4 Power . | . . . Propulsion 2 | . . 2 Utility 1 | . . 1 Weapon 2 | . 1 1 Highest Loss Streak 4 | . 1 4 To Critical Strikes . | . . . Average Backups 6 | 3 6 8 Power . | . 1 1 Propulsion 3 | 2 3 5 Utility . | . . 1 Weapon . | . . . Tool/Special . | . . . Unused Backups 7 | . . 7 Power 1 | . . 1 Propulsion 4 | . . 4 Utility 1 | . . 1 Weapon . | . . . Tool/Special 1 | . . 1 Average Slot Usage (%) 82 | . 82 83 Engine 14 | . 14 14 Treads 18 | . 21 . Leg 9 | . 6 28 Device 4 | . 2 12 Storage 14 | . 14 14 Energy Gun 14 | . 17 . Slashing Weapon 6 | . 5 14 Peak Build Rating 7 | 6 7 7 Average Rating 6 | 4 6 6 On Entrance 4 | . 6 7 Avg Prop Armor Cover (%) . | . . . Naked Turns . | . . . Heaviest Build 19 | 14 19 19 Greatest Support 40 | 40 40 20 Greatest Overweight (x) 2 | 2 . . Average Overweight (x) . | . . . Largest Inventory Capacity 10 | 8 10 10 Average Capacity 9 | 6 9 10 Most Carried 10 | 5 10 9 Average Carried 6 | 3 6 8 Final Capacity 10 | 8 10 10 Final Carried 8 | 4 8 7 Class Distribution -------------------- 100% | Mutant Dominant Class ---------------- Mutant | -10/Materials Mutant | -10/Mines Resources | -11 -10 -10 ----------- Run | Yrd Mat Min Matter Collected 354 | 168 181 5 Remotely . | . . . Salvage Created 488 | . 443 45 Parts 39 | . 32 7 Haulers Intercepted 1 | . 1 . Recyclers Shooed . | . . . Parts Field Recycled . | . . . Retrieved Matter . | . . . Parts Self-Destructed . | . . . Prevented . | . . . Parts Restored . | . . . Kills | -11 -10 -10 ------- Run | Yrd Mat Min Combat Hostiles Destroyed 12 | . 9 3 Melee 5 | . 2 3 Guns 6 | . 6 . AOE 1 | . 1 . Classes Destroyed 5 | . 5 . Worker 1 | . 1 . Hauler 1 | . 1 . Operator 2 | . 2 . Swarmer 5 | . 2 3 Grunt 7 | . 7 . Best Kill Streak 3 | . 3 3 Combat Bots Only 3 | . 2 3 Max Kills in Single Turn 1 | . 1 1 Gunslinging . | . . . Exploded 1 | . 1 . Melee 1 | . 1 1 Uniques/NPCs Destroyed . | . . . Combat | -11 -10 -10 -------- Run | Yrd Mat Min Hostile Shots Fired 104 | . 40 64 Missed 31 | . 12 19 Hits 73 | . 28 45 Projectile 73 | . 28 45 Critical Strikes 2 | . . 2 Damage Taken 888 | . 361 527 Core 252 | . 71 181 Absorbed by Shields . | . . . Core Remaining (%) 100 | 100 . . Volleys Fired 27 | . 27 . Largest 2 | . 2 . Hottest 90 | . 90 . Shots Fired 56 | . 56 . Gun 56 | . 56 . Cannon . | . . . Launcher . | . . . Special . | . . . Kinetic . | . . . Thermal 19 | . 19 . Explosive . | . . . Electromagnetic 37 | . 37 . Robot Hit Streak 7 | . 7 . Robot Miss Streak 4 | . 4 . Penetration Max . | . . . Secondary Targets . | . . . Shots Hit Robots 46 | . 36 10 Core Hits 22 | . 18 4 Critical Kills . | . . . Critical Parts Destroyed . | . . . Critical Strikes 2 | . 2 . Burn 1 | . 1 . Corrupt 1 | . 1 . Melee Attacks 23 | . 7 16 Impact . | . . . Slashing 23 | . 7 16 Piercing . | . . . Sneak Attacks . | . . . Combat Hostiles . | . . . Follow-up Attacks . | . . . Damage Inflicted 892 | . 679 213 Guns 431 | . 431 . Cannons . | . . . Explosions 157 | . 157 . Melee 304 | . 91 213 Ramming . | . . . Kinetic . | . . . Thermal 294 | . 294 . Explosive . | . . . Electromagnetic 294 | . 294 . Impact . | . . . Slashing 304 | . 91 213 Piercing . | . . . Highest Corruption 5 | . 5 5 Average Corruption 4 | . 4 5 Corruption Purged . | . . . Corruption Blocked . | . . . Effects 19 | . 16 3 Message Errors 2 | . 2 . Matter Fused 5 | . 3 2 Heat Flow Errors 3 | . 3 . Energy Discharges 3 | . 3 . Parts Rejected 1 | . 1 . Data Loss (minor) 3 | . 2 1 Misfires 2 | . 2 . Overload Shots . | . . . Overflow Damage 31 | . 10 21 Projectiles . | . . . Explosions 10 | . 10 . Melee 21 | . . 21 Knockbacks . | . . . Impact . | . . . Kinetic . | . . . Secondary . | . . . Self-Inflicted Damage 51 | . 51 . Shots 2 | . 2 . Rammed . | . . . Targets Rammed . | . . . Kicked . | . . . Crushed . | . . . Highest Temperature 218 | . 218 8 Average Temperature 67 | . 68 8 Received Heat Transfer 399 | . 150 249 Siege Activations . | . . . Martial Activations . | . . . Shielding Activations . | . . . Robots Disrupted . | . . . Combat Hostiles . | . . . Robots Corrupted 1 | . 1 . Combat Hostiles . | . . . Parts Fried . | . . . Impact Corruptions . | . . . Robots Melted . | . . . Combat Hostiles . | . . . Parts Melted 2 | . 2 . Heat Transferred 631 | . 631 . Parts Sabotaged . | . . . Parts Stolen . | . . . Parts Stripped . | . . . Power Chain Reactions 3 | . 3 . Alert | -11 -10 -10 ------- Run | Yrd Mat Min Maximum Alert Level . | . . . Low Security (%) 100 | 100 100 100 Level 1 . | . . . Level 2 . | . . . Level 3 . | . . . Level 4 . | . . . Level 5 . | . . . High Security . | . . . Max Security . | . . . Peak Influence 89 | . 89 63 Initial 3 | . . 3 Average 34 | . 38 35 Influence Increases 407 | . 337 70 Destroy 0b10 Robot/C 240 | . 180 60 Destroy 0b10 Robot/NC 20 | . 20 . Destroy Leader 62 | . 52 10 Disable Machine 30 | . 30 . Destroy Structure 10 | . 10 . Lose Combat Pursuer 45 | . 45 . Influence Decreases 407 | . 328 79 Entered New Map 6 | . . 6 Time Decay 368 | . 318 50 Lost Part 33 | . 10 23 Squads Dispatched 3 | . 3 . Investigation 1 | . 1 . Extermination . | . . . Reinforcement 2 | . 2 . Assault . | . . . Garrison . | . . . Intercept . | . . . Searches Triggered . | . . . Construction Impeded . | . . . Haulers Reinforced . | . . . Active Scanning Responses . | . . . Cargo Convoy Interrupts . | . . . Stealth | -11 -10 -10 --------- Run | Yrd Mat Min Distress Signals 1 | . 1 . Communications Jammed . | . . . Distress Signals . | . . . Times Spotted 23 | . 18 5 Peak Tracking Total 5 | . 5 3 Tactical Retreats 4 | . 4 . Traps | -11 -10 -10 ------- Run | Yrd Mat Min Traps Triggered 4 | . 4 . Indirectly . | . . . Trap Hack Attempts . | . . . Triggered . | . . . Disarmed . | . . . Reprogrammed . | . . . Reused . | . . . Traps Extracted . | . . . Installed . | . . . Triggered . | . . . Machines | -11 -10 -10 ---------- Run | Yrd Mat Min Machines Disabled 2 | . 2 . Max in Single Turn 1 | . 1 . Machines Repaired . | . . . Machines Dismantled . | . . . Machines Sabotaged . | . . . Overloaded Fab Kills . | . . . Hacking | -11 -10 -10 --------- Run | Yrd Mat Min Machines Accessed 2 | . 2 . Terminals 2 | . 2 . Fabricators . | . . . Repair Stations . | . . . Recycling Units . | . . . Scanalyzers . | . . . Garrison Access . | . . . Total Hacks 2 | . 2 . Successful 1 | . 1 . Failed 1 | . 1 . Catastrophic . | . . . Database Lockouts . | . . . Manual 1 | . 1 . Terminals 2 | . 2 . Fabricators . | . . . Repair Stations . | . . . Recycling Units . | . . . Scanalyzers . | . . . Garrison Access . | . . . Terminal Hacks 1 | . 1 . Locate Traps 1 | . 1 . Fabricator Hacks . | . . . Repair Station Hacks . | . . . Recycling Unit Hacks . | . . . Scanalyzer . | . . . Garrison Access Hacks . | . . . Unauthorized Hacks . | . . . Terminals . | . . . Fabricators . | . . . Repair Stations . | . . . Recycling Units . | . . . Scanalyzers . | . . . Garrison Access . | . . . Data Cores Recovered . | . . . Used . | . . . Hacking Detections 1 | . 1 . Full Trace Events . | . . . Feedback Events . | . . . Feedback Blocked . | . . . Robot Schematics Acquired . | . . . Robots Built . | . . . Authchips . | . . . Time . | . . . Total Robot Build Rating . | . . . Part Schematics Acquired . | . . . Parts Built . | . . . Authchips . | . . . Time . | . . . Total Part Build Rating . | . . . Part Studies Acquired . | . . . Parts Repaired . | . . . Time . | . . . Parts Recycled . | . . . Recycled Matter . | . . . Retrieved Matter . | . . . Retrieved Components . | . . . Parts Scanalyzed . | . . . Part Schematics Acquired . | . . . Parts Damaged . | . . . Bothacking | -11 -10 -10 ------------ Run | Yrd Mat Min Used RIF Installer . | . . . Robots Hacked . | . . . Non-combat . | . . . Combat . | . . . Robot Hacks Applied . | . . . Relay Couplers Released . | . . . Fabnet Peak Effective % . | . . . Robots Rewired . | . . . Allies Hacked . | . . . Hacks Repelled . | . . . Allies | -11 -10 -10 -------- Run | Yrd Mat Min Total Allies . | . . . Largest Group . | . . . Highest-Rated Group . | . . . Highest-Rated Ally . | . . . Total Orders . | . . . Ally Attacks . | . . . Total Damage . | . . . Kills . | . . . Allies Corrupted . | . . . Allies Melted . | . . . Intel | -11 -10 -10 ------- Run | Yrd Mat Min Active Infowar (turns) 276 | . 163 113 ECM 276 | . 163 113 Robot Analysis Total . | . . . Derelict Logs Recovered . | . . . Drone Launches . | . . . Drone Recoveries . | . . . Exploration | -11 -10 -10 ------------- Run | Yrd Mat Min Turns Passed 964 | 92 750 122 Spaces Moved 526 | 63 403 60 Core 28 | 28 . . Treads 291 | 35 256 . Legs 207 | . 147 60 Wheels . | . . . Hover . | . . . Flight . | . . . Fastest Speed 50 | 50 120 120 Average Speed 140 | 124 145 120 Slowest Speed 160 | 160 160 120 Overloaded Moves . | . . . Propulsion Burnouts . | . . . Robots Hopped . | . . . Potential Cave-ins . | . . . Cave-ins Triggered . | . . . Exploration Rate (%) 31 | 3 74 16 Regions Visited 2 Branch Regions 1 Pre-discovered Areas . | . . . Known Exits Taken . | . . . Unknown Exits Taken 2 | 1 1 . Scrap Searched . | . . . Spaces Dug . | . . . Terrain Destroyed 8 | . 8 . Melee . | . . . Projectile . | . . . AOE 8 | . 8 . Terrain Rammed . | . . . Walls Destroyed . | . . . Machines Disabled . | . . . Actions | -11 -10 -10 --------- Run | Yrd Mat Min Total 653 | 75 500 78 Wait 43 | . 43 . Move 524 | 62 402 60 Hop . | . . . Pick Up 16 | 7 9 . Fast Attach 5 | 3 2 . Attach 10 | 3 5 2 Detach . | . . . Swap . | . . . Drop 5 | . 5 . Fire 27 | . 27 . Melee 23 | . 7 16 Ram . | . . . Kick . | . . . Crush . | . . . Escape Stasis . | . . . Rewire . | . . . Trap . | . . . Miscellaneous . | . . . Route ------- -11/Scrapyard -10/Materials (discovered 4 exits: [*Mat x2] / [*Min x2]) -10/Mines (discovered 1 exit: [*Mat]) History --------- Turn | Location | Event 5 | -11/Scrapyard | Discovered new exit (range 16) 93 | -11/Scrapyard | Entered Materials 287 | -10/Materials | Discovered new exit (range 15) 315 | -10/Materials | Build established: Mutant 578 | -10/Materials | Discovered new exit (range 7) 593 | -10/Materials | Derelicts attacked the area 730 | -10/Materials | Discovered new exit (range 5) 831 | -10/Materials | Discovered new exit (range 9) 843 | -10/Materials | Entered Mines 885 | -10/Mines | Discovered new exit (range 13) 932 | -10/Mines | Core integrity fell below 50% 951 | -10/Mines | Core integrity fell below 20% 965 | -10/Mines | Destroyed by G-34 Mercenary with Small Laser Last Messages --------------- LOCATION=UNKNOWN GOAL=ESCAPE 00848_ S-10 Pest destroyed. 00851_ System corrupted: Component data lost. 00855_ S-10 Pest destroyed. 00871_ System corrupted: Matter fused (-5). 00871_ Acquired 5 matter. 00880_ R-06 Scavenger collects Lgt. Ion Engine. 00883_ R-06 Scavenger collects Flight Unit. 00885_ EXIT=FOUND 00889_ K-01 Serf collects debris. 00930_ G-47 Trooper Aluminum Leg ripped off. 00930_ K-01 Serf collects debris. 00934_ Critical hit (Burn: +37). 00940_ Aluminum Leg destroyed. 00942_ System corrupted: Matter fused (-5). 00946_ Destroyed Lgt. Nuclear Core. 00954_ Aluminum Leg destroyed. 00956_ ECM Suite destroyed. 00961_ Mining Claw destroyed. Map ----- +----------------------------------------------------+ | | | | | | | | | | | | | | | | | | | | | | | | | ?????????????????????????????????????????????????? | | ?????????????????######??????????????????????????? | | ????????????????## ##?????????????????????????? | | ???????????###### ##????????????????????????? | | ???????????# ##???????????????????????? | | ???????????# #???????????????????????? | | ???????????# ### ##??????????????????????? | | ???????????# #?## < ##?????????????????????? | | ???????????# #??## #?????????????????????? | | ???????????# #????#### #?????????????????????? | | ????#####?## ##???????# ##?????????????????????? | | ???## ### ##?????## ##?????????????????????? | | ???# % #????## #####?????????????????? | | ???# #????# @ ###???????????????? | | ???## % #????# #######?????????? | | ????#### ##???## k #?????????? | | ???????## =* ####?# # g #?????????? | | ????????##%= ###t ## g #### #?????????? | | ?????????#### ## ## ## ##???????????????? | | ????????????## ## ## #?###????????????????? | | ?????????????# ## #????????????????????? | | ?????????????# ####### #????????????????????? | | ?????????????# ###?????# #????????????????????? | | ?????????????## ##???????#r #????????????????????? | | ??????????????###????????# #????????????????????? | | ?????????????????????????# #????????????????????? | | ?????????????????????????# #????????????????????? | | ?????????????????????????# #????????????????????? | | ?????????????????????????# #????????????????????? | | ?????????????????????????? ?????????????????????? | | ?????????????????????????? ?????????????????????? | | ?????????????????????????? ?????????????????????? | | ?????????????????????????????????????????????????? | | ?????????????????????????????????????????????????? | | ?????????????????????????????????????????????????? | | ?????????????????????????????????????????????????? | | ?????????????????????????????????????????????????? | | ?????????????????????????????????????????????????? | +----------------------------------------------------+ Best States ------------- Heat Dissipation 25 Energy Generation 10 Energy Capacity 250 Matter Stores 300 Matter Capacity 300 Sight Range 16 Terrain Scan Density 10 ECM Strength 1 Evasion (%) 55 Recoil Reduction 2 Item Schematics ----------------- None Robot Schematics ------------------ None Fabricated ------------ Nothing Repaired ---------- Nothing Studied --------- None Alien Tech Used ----------------- None Achievements -------------- None Challenges ------------ None Game ------ Seed FissionCooledBoregun Manual? 0 Play Time 00:05:47 Cumulative 313.2 hours Start 2026.09.21 @ 20:14:47 End 2026.09.21 @ 20:19:39 Sessions 1 Manual Loads 0 Difficulty Rogue Special Mode None Game No. 343 Rogue 343 Adventurer 0 Explorer 0 Win Type - Total 3 Types 3/0/0/0/0/0/0/0/0/0 Lore% 51 Gallery% 59 Achievement% 46 Wizard Run 0 Options --------- Layout 1 ASCII 0 Keyboard 0 Movement Numpad Keybinds 0 Fullscreen 2 Font 24/Smallcaps Map View 50x35 Zoom Use 0% Tactical HUD 1 Map Filters NONE Filters NONE Steam 1 RUN: dbaa9a84-8962-454b-958d-8801e85123bb